[Event "Early-Titled-Tuesday-Blitz-February-20-2024"]
[Site "Chess.com"]
[Date "2024.02.20"]
[Round "1"]
[White "leschebaza"]
[Black "Goryachkina"]
[Result "0-1"]
[WhiteElo "2378"]
[BlackElo "2713"]
[TimeControl "180+1"]
[EndTime "8:06:09 PST"]
[Termination "Goryachkina won by resignation"]

1. Nf3 {[%clk 0:02:58.6]} 1... c5 {[%clk 0:02:59.5]} 2. c4 {[%clk 0:02:57.2]}
2... Nc6 {[%clk 0:02:58.9]} 3. Nc3 {[%clk 0:02:56.6]} 3... g6 {[%clk 0:02:57.6]}
4. e3 {[%clk 0:02:55]} 4... Nf6 {[%clk 0:02:56.8]} 5. d4 {[%clk 0:02:55.1]} 5...
cxd4 {[%clk 0:02:57]} 6. Nxd4 {[%clk 0:02:45]} 6... Bg7 {[%clk 0:02:55.7]} 7.
Be2 {[%clk 0:02:44.5]} 7... O-O {[%clk 0:02:55.2]} 8. O-O {[%clk 0:02:44.5]}
8... d6 {[%clk 0:02:54.1]} 9. Bf3 {[%clk 0:02:40.5]} 9... Bd7 {[%clk 0:02:54.1]}
10. b3 {[%clk 0:02:37.8]} 10... Nxd4 {[%clk 0:02:38.7]} 11. Qxd4 {[%clk
0:02:33.9]} 11... Bc6 {[%clk 0:02:36.5]} 12. Bxc6 {[%clk 0:02:28.7]} 12... bxc6
{[%clk 0:02:36.4]} 13. Bb2 {[%clk 0:02:28.9]} 13... a5 {[%clk 0:02:25.3]} 14.
Ne4 {[%clk 0:02:25.1]} 14... a4 {[%clk 0:02:15.9]} 15. Rfd1 {[%clk 0:02:14.1]}
15... Qa5 {[%clk 0:01:59.1]} 16. Bc3 {[%clk 0:02:10.5]} 16... Qa6 {[%clk
0:01:45]} 17. h3 {[%clk 0:01:52.4]} 17... Rab8 {[%clk 0:01:33.6]} 18. b4 {[%clk
0:01:48.2]} 18... a3 {[%clk 0:01:31.1]} 19. Rab1 {[%clk 0:01:43.8]} 19... Qa4
{[%clk 0:01:26.3]} 20. Rb3 {[%clk 0:01:31.7]} 20... Rfd8 {[%clk 0:01:20.7]} 21.
Ng5 {[%clk 0:00:48]} 21... c5 {[%clk 0:01:08.5]} 22. bxc5 {[%clk 0:00:43.7]}
22... Rxb3 {[%clk 0:01:07.7]} 23. axb3 {[%clk 0:00:43.4]} 23... Qxb3 {[%clk
0:01:07.8]} 24. Qd2 {[%clk 0:00:25.7]} 24... h6 {[%clk 0:01:03.2]} 25. cxd6
{[%clk 0:00:09.7]} 25... Rxd6 {[%clk 0:00:58.1]} 26. Qxd6 {[%clk 0:00:09.7]} 0-1

[Event "Early-Titled-Tuesday-Blitz-February-20-2024"]
[Site "Chess.com"]
[Date "2024.02.20"]
[Round "1"]
[White "HanSchut"]
[Black "Sanyura"]
[Result "1-0"]
[WhiteElo "2277"]
[BlackElo "2600"]
[TimeControl "180+1"]
[EndTime "8:06:09 PST"]
[Termination "HanSchut won by resignation"]

1. e4 {[%clk 0:03:00.4]} 1... c5 {[%clk 0:01:20.3]} 2. Nf3 {[%clk 0:02:57.8]}
2... e6 {[%clk 0:01:20.6]} 3. c4 {[%clk 0:02:57.5]} 3... d5 {[%clk 0:01:20]} 4.
exd5 {[%clk 0:02:56.7]} 4... exd5 {[%clk 0:01:20.9]} 5. cxd5 {[%clk 0:02:57.3]}
5... Bd6 {[%clk 0:01:21.5]} 6. Nc3 {[%clk 0:02:55.8]} 6... Ne7 {[%clk 0:01:22]}
7. d4 {[%clk 0:02:55.7]} 7... cxd4 {[%clk 0:01:21.2]} 8. Nxd4 {[%clk 0:02:56.6]}
8... O-O {[%clk 0:01:21.7]} 9. Be2 {[%clk 0:02:56]} 9... a6 {[%clk 0:01:22.3]}
10. Bf3 {[%clk 0:02:55.1]} 10... b5 {[%clk 0:01:23]} 11. O-O {[%clk 0:02:51]}
11... Bb7 {[%clk 0:01:23.2]} 12. Bg5 {[%clk 0:02:45.4]} 12... Qc7 {[%clk
0:01:16.4]} 13. h3 {[%clk 0:02:41]} 13... h6 {[%clk 0:01:15]} 14. Bxe7 {[%clk
0:02:33.7]} 14... Bxe7 {[%clk 0:01:15.9]} 15. Nf5 {[%clk 0:02:25.8]} 15... Bd6
{[%clk 0:00:45]} 16. Nxd6 {[%clk 0:02:09.5]} 16... Qxd6 {[%clk 0:00:44.9]} 17.
Ne4 {[%clk 0:02:09.3]} 17... Qb4 {[%clk 0:00:38.1]} 18. Rc1 {[%clk 0:01:48.5]}
18... Rd8 {[%clk 0:00:28.1]} 19. Rc7 {[%clk 0:01:37.5]} 19... Bxd5 {[%clk
0:00:19.2]} 20. Nf6+ {[%clk 0:01:37.2]} 20... gxf6 {[%clk 0:00:19]} 21. Bxd5
{[%clk 0:01:38]} 21... Nd7 {[%clk 0:00:08.5]} 22. a3 {[%clk 0:01:32]} 22... Qa5
{[%clk 0:00:06.3]} 23. Qg4+ {[%clk 0:01:27.5]} 23... Kf8 {[%clk 0:00:06.1]} 24.
Rxd7 {[%clk 0:01:28.1]} 24... Rxd7 {[%clk 0:00:06.2]} 25. Qxd7 {[%clk
0:01:28.9]} 25... Rd8 {[%clk 0:00:07]} 26. Qf5 {[%clk 0:01:24.9]} 26... Kg7
{[%clk 0:00:06.1]} 27. Be4 {[%clk 0:01:24.2]} 27... Qd2 {[%clk 0:00:05.7]} 28.
Qh7+ {[%clk 0:01:23]} 28... Kf8 {[%clk 0:00:05.5]} 29. b4 {[%clk 0:01:14.6]}
29... Qf4 {[%clk 0:00:02.9]} 30. Qf5 {[%clk 0:01:13]} 30... Qd2 {[%clk
0:00:02.2]} 31. Qxf6 {[%clk 0:01:10.9]} 1-0

[Event "Early-Titled-Tuesday-Blitz-February-20-2024"]
[Site "Chess.com"]
[Date "2024.02.20"]
[Round "1"]
[White "N18player"]
[Black "JSPrepz"]
[Result "0-1"]
[WhiteElo "2479"]
[BlackElo "2859"]
[TimeControl "180+1"]
[EndTime "8:06:10 PST"]
[Termination "JSPrepz won by checkmate"]

1. Nf3 {[%clk 0:03:00.9]} 1... g6 {[%clk 0:02:59.6]} 2. c4 {[%clk 0:03:01.8]}
2... Bg7 {[%clk 0:02:59.9]} 3. Nc3 {[%clk 0:03:02.6]} 3... d6 {[%clk 0:02:59.9]}
4. g3 {[%clk 0:03:03.2]} 4... Bf5 {[%clk 0:02:57.9]} 5. Bg2 {[%clk 0:03:03.2]}
5... Qc8 {[%clk 0:02:58.4]} 6. h3 {[%clk 0:03:02.6]} 6... Nf6 {[%clk 0:02:55.1]}
7. d3 {[%clk 0:02:57.6]} 7... O-O {[%clk 0:02:54.8]} 8. g4 {[%clk 0:02:56]} 8...
Bd7 {[%clk 0:02:53.9]} 9. Bd2 {[%clk 0:02:46.7]} 9... c5 {[%clk 0:02:52.4]} 10.
Qc1 {[%clk 0:02:46.5]} 10... Re8 {[%clk 0:02:48.2]} 11. Bh6 {[%clk 0:02:42.8]}
11... Bh8 {[%clk 0:02:48.5]} 12. Qd2 {[%clk 0:02:34.1]} 12... Nc6 {[%clk
0:02:46.2]} 13. O-O-O {[%clk 0:01:45.9]} 13... a6 {[%clk 0:02:45.8]} 14. Ng5
{[%clk 0:01:34.9]} 14... b5 {[%clk 0:02:42.7]} 15. Bf3 {[%clk 0:01:25]} 15...
Rb8 {[%clk 0:02:35.2]} 16. Rdg1 {[%clk 0:01:23.2]} 16... bxc4 {[%clk 0:02:23.4]}
17. dxc4 {[%clk 0:01:16]} 17... Na5 {[%clk 0:02:23.7]} 18. b3 {[%clk 0:01:12.4]}
18... Rxb3 {[%clk 0:02:19.8]} 19. Nd5 {[%clk 0:01:01.6]} 19... Nxc4 {[%clk
0:02:06]} 20. Qc2 {[%clk 0:00:52.1]} 20... Rxf3 {[%clk 0:01:17.5]} 21. exf3
{[%clk 0:00:51.3]} 21... Nxd5 {[%clk 0:01:07.7]} 22. Qxc4 {[%clk 0:00:50.6]}
22... e6 {[%clk 0:01:08.1]} 23. Rd1 {[%clk 0:00:37.8]} 23... Qb7 {[%clk
0:01:05.5]} 24. Rd2 {[%clk 0:00:38.1]} 24... Rb8 {[%clk 0:01:03.9]} 25. Qc2
{[%clk 0:00:26.2]} 25... Ba4 {[%clk 0:00:57.1]} 26. Qe4 {[%clk 0:00:20.6]} 26...
Bb2+ {[%clk 0:00:54.6]} 27. Kb1 {[%clk 0:00:16.9]} 27... Nc3# {[%clk 0:00:54.6]}
0-1

[Event "Early-Titled-Tuesday-Blitz-February-20-2024"]
[Site "Chess.com"]
[Date "2024.02.20"]
[Round "1"]
[White "BeautiFullMindChess"]
[Black "NovozhilovSemen"]
[Result "0-1"]
[WhiteElo "2335"]
[BlackElo "2678"]
[TimeControl "180+1"]
[EndTime "8:06:10 PST"]
[Termination "NovozhilovSemen won on time"]

1. e4 {[%clk 0:03:00.9]} 1... c5 {[%clk 0:02:57.8]} 2. Nc3 {[%clk 0:02:56.1]}
2... Nc6 {[%clk 0:02:55.3]} 3. Bb5 {[%clk 0:02:46]} 3... Nd4 {[%clk 0:02:53.9]}
4. Nf3 {[%clk 0:02:45.4]} 4... g6 {[%clk 0:02:51.7]} 5. O-O {[%clk 0:02:41.4]}
5... Bg7 {[%clk 0:02:51.5]} 6. Nxd4 {[%clk 0:02:35.8]} 6... cxd4 {[%clk
0:02:51.3]} 7. Ne2 {[%clk 0:02:35.9]} 7... a6 {[%clk 0:02:50]} 8. Bc4 {[%clk
0:02:35.8]} 8... e6 {[%clk 0:02:50.1]} 9. Bb3 {[%clk 0:02:21.8]} 9... Ne7 {[%clk
0:02:49.1]} 10. c3 {[%clk 0:02:20]} 10... Nc6 {[%clk 0:02:44.9]} 11. d3 {[%clk
0:02:17.7]} 11... O-O {[%clk 0:02:44.2]} 12. f4 {[%clk 0:02:04]} 12... d6 {[%clk
0:02:27.6]} 13. Bd2 {[%clk 0:01:50.9]} 13... b5 {[%clk 0:02:20.9]} 14. f5 {[%clk
0:01:43.6]} 14... exf5 {[%clk 0:02:13.2]} 15. Bd5 {[%clk 0:01:38.6]} 15... Qb6
{[%clk 0:02:12.8]} 16. cxd4 {[%clk 0:01:23.6]} 16... fxe4 {[%clk 0:01:58.7]} 17.
dxe4 {[%clk 0:01:13.2]} 17... Bg4 {[%clk 0:01:58.2]} 18. Kh1 {[%clk 0:00:54.5]}
18... Rac8 {[%clk 0:01:55.8]} 19. Be3 {[%clk 0:00:36.2]} 19... Nb4 {[%clk
0:01:37.4]} 20. Bb3 {[%clk 0:00:24.5]} 20... Rce8 {[%clk 0:01:37.6]} 21. a3
{[%clk 0:00:18.2]} 21... Rxe4 {[%clk 0:01:31.7]} 22. Qd2 {[%clk 0:00:15.2]}
22... Nc6 {[%clk 0:01:24.6]} 23. Bg1 {[%clk 0:00:09.8]} 23... Rxe2 {[%clk
0:01:14.7]} 24. Qf4 {[%clk 0:00:09.9]} 24... Bf5 {[%clk 0:01:12.6]} 25. d5
{[%clk 0:00:08.9]} 25... Nd4 {[%clk 0:01:11.9]} 26. Rad1 {[%clk 0:00:06.9]}
26... Rxb2 {[%clk 0:01:11.5]} 27. Rf3 {[%clk 0:00:02.2]} 27... Rc8 {[%clk
0:01:06.9]} 28. Bxd4 {[%clk 0:00:01.9]} 28... Bxd4 {[%clk 0:01:06.6]} 0-1

[Event "Early-Titled-Tuesday-Blitz-February-20-2024"]
[Site "Chess.com"]
[Date "2024.02.20"]
[Round "1"]
[White "BashirliSaadat"]
[Black "Druid24"]
[Result "1-0"]
[WhiteElo "2365"]
[BlackElo "2663"]
[TimeControl "180+1"]
[EndTime "8:06:18 PST"]
[Termination "BashirliSaadat won by checkmate"]

1. d4 {[%clk 0:03:00.9]} 1... Nf6 {[%clk 0:03:00.2]} 2. e3 {[%clk 0:03:00.3]}
2... e6 {[%clk 0:03:00.6]} 3. Bd3 {[%clk 0:02:59.7]} 3... b6 {[%clk 0:03:00.1]}
4. f4 {[%clk 0:02:57.5]} 4... Bb7 {[%clk 0:03:00.3]} 5. Nf3 {[%clk 0:02:57.8]}
5... Ne4 {[%clk 0:03:00.5]} 6. O-O {[%clk 0:02:54.9]} 6... Be7 {[%clk
0:03:00.6]} 7. Nbd2 {[%clk 0:02:54.1]} 7... f5 {[%clk 0:03:00.8]} 8. Ne5 {[%clk
0:02:50.5]} 8... O-O {[%clk 0:02:59.8]} 9. Nxe4 {[%clk 0:02:47]} 9... fxe4
{[%clk 0:03:00.7]} 10. Bc4 {[%clk 0:02:42.8]} 10... d5 {[%clk 0:02:58.5]} 11.
Be2 {[%clk 0:02:40.7]} 11... Nd7 {[%clk 0:02:58.5]} 12. Nxd7 {[%clk 0:02:36]}
12... Qxd7 {[%clk 0:02:59.4]} 13. c3 {[%clk 0:02:34.1]} 13... c5 {[%clk
0:02:56.8]} 14. Qe1 {[%clk 0:02:32.5]} 14... Rac8 {[%clk 0:02:54.9]} 15. Qg3
{[%clk 0:02:30]} 15... Bd6 {[%clk 0:02:54.5]} 16. Bd2 {[%clk 0:02:24.2]} 16...
cxd4 {[%clk 0:02:54.4]} 17. exd4 {[%clk 0:02:22.5]} 17... Rf6 {[%clk 0:02:52.7]}
18. Qe3 {[%clk 0:02:16.1]} 18... Rcf8 {[%clk 0:02:51.5]} 19. g3 {[%clk
0:02:15.6]} 19... Qc8 {[%clk 0:02:45.5]} 20. Rae1 {[%clk 0:02:05.8]} 20... Ba6
{[%clk 0:02:45.2]} 21. Bxa6 {[%clk 0:02:00.8]} 21... Qxa6 {[%clk 0:02:46.1]} 22.
a3 {[%clk 0:02:00.9]} 22... g5 {[%clk 0:02:42.9]} 23. Qf2 {[%clk 0:01:54.4]}
23... gxf4 {[%clk 0:02:41.7]} 24. gxf4 {[%clk 0:01:54.4]} 24... Kh8 {[%clk
0:02:40.3]} 25. Kh1 {[%clk 0:01:47.1]} 25... Qb5 {[%clk 0:02:38.6]} 26. b4
{[%clk 0:01:40.2]} 26... Qd3 {[%clk 0:02:30.6]} 27. Re3 {[%clk 0:01:26.9]} 27...
Qc2 {[%clk 0:02:30.2]} 28. Rh3 {[%clk 0:01:22.9]} 28... R8f7 {[%clk 0:02:30]}
29. Rg1 {[%clk 0:01:15.4]} 29... Bf8 {[%clk 0:01:53.1]} 30. Rhg3 {[%clk
0:00:27.2]} 30... h6 {[%clk 0:01:51.6]} 31. Rg8+ {[%clk 0:00:26.6]} 31... Kh7
{[%clk 0:01:51.8]} 32. Qg2 {[%clk 0:00:20.6]} 32... e3 {[%clk 0:01:00.2]} 33.
Rh8+ {[%clk 0:00:19.6]} 33... Kxh8 {[%clk 0:00:59.5]} 34. Qg8# {[%clk 0:00:20]}
1-0

[Event "Early-Titled-Tuesday-Blitz-February-20-2024"]
[Site "Chess.com"]
[Date "2024.02.20"]
[Round "1"]
[White "ChessFanNM"]
[Black "bescmelasti"]
[Result "0-1"]
[WhiteElo "2321"]
[BlackElo "2656"]
[TimeControl "180+1"]
[EndTime "8:06:21 PST"]
[Termination "bescmelasti won by resignation"]

1. Nf3 {[%clk 0:02:56.4]} 1... Nc6 {[%clk 0:02:57.9]} 2. e4 {[%clk 0:02:54.9]}
2... e5 {[%clk 0:02:55.9]} 3. Nc3 {[%clk 0:02:54.2]} 3... Nf6 {[%clk 0:02:55.6]}
4. Bb5 {[%clk 0:02:53.6]} 4... Bd6 {[%clk 0:02:55]} 5. d3 {[%clk 0:02:52.7]}
5... Ne7 {[%clk 0:02:51.2]} 6. Bg5 {[%clk 0:02:47.8]} 6... c6 {[%clk 0:02:46.2]}
7. Ba4 {[%clk 0:02:46.7]} 7... Ng6 {[%clk 0:02:43.2]} 8. d4 {[%clk 0:02:39.2]}
8... Qe7 {[%clk 0:02:26.2]} 9. h4 {[%clk 0:02:24]} 9... h6 {[%clk 0:02:20.2]}
10. Bxf6 {[%clk 0:02:16.9]} 10... Qxf6 {[%clk 0:02:20]} 11. h5 {[%clk
0:02:11.9]} 11... Nf4 {[%clk 0:02:07.2]} 12. g3 {[%clk 0:02:07.9]} 12... exd4
{[%clk 0:01:46.8]} 13. e5 {[%clk 0:02:07.8]} 13... Bxe5 {[%clk 0:01:30.3]} 14.
O-O {[%clk 0:02:07.5]} 14... dxc3 {[%clk 0:01:23.1]} 15. Nxe5 {[%clk 0:02:04.1]}
15... cxb2 {[%clk 0:01:16.8]} 16. Re1 {[%clk 0:01:47.3]} 16... Nh3+ {[%clk
0:00:57.7]} 17. Kg2 {[%clk 0:01:45.4]} 17... O-O {[%clk 0:00:56.2]} 18. Rb1
{[%clk 0:01:43.7]} 18... Nxf2 {[%clk 0:00:39.8]} 19. Qf3 {[%clk 0:01:40.4]}
19... Qxf3+ {[%clk 0:00:34]} 20. Kxf3 {[%clk 0:01:40]} 20... Nh3 {[%clk
0:00:34.3]} 21. Bb3 {[%clk 0:01:36.7]} 21... d5 {[%clk 0:00:34.1]} 22. g4 {[%clk
0:01:35]} 22... Ng5+ {[%clk 0:00:33.9]} 23. Kf4 {[%clk 0:01:34.2]} 23... Re8
{[%clk 0:00:30.3]} 24. c4 {[%clk 0:01:31.7]} 24... Be6 {[%clk 0:00:17.8]} 25.
cxd5 {[%clk 0:01:28.5]} 25... Bxd5 {[%clk 0:00:17.8]} 26. Bxd5 {[%clk
0:01:28.3]} 26... cxd5 {[%clk 0:00:18.3]} 27. Rxb2 {[%clk 0:01:26.5]} 27... Re7
{[%clk 0:00:18.1]} 28. Nd3 {[%clk 0:01:24.5]} 28... Rxe1 {[%clk 0:00:17.6]} 29.
Nxe1 {[%clk 0:01:23.6]} 29... b6 {[%clk 0:00:18.5]} 30. Rd2 {[%clk 0:01:23.2]}
30... Rd8 {[%clk 0:00:18.8]} 31. a4 {[%clk 0:01:18.4]} 31... Kf8 {[%clk
0:00:18]} 32. Nd3 {[%clk 0:01:17.6]} 32... Ne6+ {[%clk 0:00:18]} 33. Kg3 {[%clk
0:01:17.3]} 33... Nc5 {[%clk 0:00:17.1]} 34. a5 {[%clk 0:01:14.4]} 34... Nxd3
{[%clk 0:00:16.9]} 35. Rxd3 {[%clk 0:01:14.6]} 35... bxa5 {[%clk 0:00:17.6]} 36.
Kf4 {[%clk 0:01:13.9]} 36... d4 {[%clk 0:00:17.5]} 37. Kf3 {[%clk 0:01:12.2]}
37... Ke7 {[%clk 0:00:18.1]} 38. Ra3 {[%clk 0:01:12.4]} 38... d3 {[%clk
0:00:18.1]} 0-1

[Event "Early-Titled-Tuesday-Blitz-February-20-2024"]
[Site "Chess.com"]
[Date "2024.02.20"]
[Round "1"]
[White "atalz0"]
[Black "Hongjin"]
[Result "0-1"]
[WhiteElo "2414"]
[BlackElo "2762"]
[TimeControl "180+1"]
[EndTime "8:06:25 PST"]
[Termination "Hongjin won by resignation"]

1. d4 {[%clk 0:03:00.9]} 1... Nf6 {[%clk 0:02:58.8]} 2. c4 {[%clk 0:03:01]} 2...
d6 {[%clk 0:02:59.1]} 3. Nc3 {[%clk 0:03:00.4]} 3... e5 {[%clk 0:02:59.2]} 4.
dxe5 {[%clk 0:03:00.4]} 4... dxe5 {[%clk 0:03:00.1]} 5. Qxd8+ {[%clk 0:03:00.8]}
5... Kxd8 {[%clk 0:03:01]} 6. Nf3 {[%clk 0:03:00.9]} 6... Nbd7 {[%clk 0:03:00]}
7. Rg1 {[%clk 0:02:59.9]} 7... c6 {[%clk 0:03:00.2]} 8. g4 {[%clk 0:03:00.1]}
8... Kc7 {[%clk 0:03:00.8]} 9. g5 {[%clk 0:02:59.8]} 9... Ne8 {[%clk 0:03:01.4]}
10. Bd2 {[%clk 0:02:52.4]} 10... a5 {[%clk 0:02:58.1]} 11. h4 {[%clk 0:02:45.7]}
11... Bd6 {[%clk 0:02:56.9]} 12. O-O-O {[%clk 0:02:39.3]} 12... Nc5 {[%clk
0:02:54.1]} 13. Be3 {[%clk 0:02:24.6]} 13... Bf5 {[%clk 0:02:54.2]} 14. Nxe5
{[%clk 0:02:13.4]} 14... Nb3+ {[%clk 0:02:40.7]} 15. axb3 {[%clk 0:02:14.3]}
15... Bxe5 {[%clk 0:02:41.6]} 16. f4 {[%clk 0:02:07.4]} 16... Bd6 {[%clk
0:02:37.7]} 17. c5 {[%clk 0:01:58.5]} 17... Be7 {[%clk 0:02:36]} 18. Na4 {[%clk
0:01:55.5]} 18... h6 {[%clk 0:02:32.7]} 19. Nb6 {[%clk 0:01:40.8]} 19... Rd8
{[%clk 0:02:32.7]} 20. Rxd8 {[%clk 0:01:37.9]} 20... Kxd8 {[%clk 0:02:33.2]} 21.
Bg2 {[%clk 0:01:34.2]} 21... hxg5 {[%clk 0:02:31.4]} 22. hxg5 {[%clk 0:01:34.4]}
22... Nc7 {[%clk 0:02:26.6]} 23. Rd1+ {[%clk 0:01:31.8]} 23... Ke8 {[%clk
0:02:26.9]} 24. Bd4 {[%clk 0:01:25.6]} 24... Ne6 {[%clk 0:02:24.6]} 25. e3
{[%clk 0:01:19.5]} 25... Nxc5 {[%clk 0:02:21.1]} 26. e4 {[%clk 0:00:27]} 26...
Nxb3+ {[%clk 0:02:08.6]} 27. Kc2 {[%clk 0:00:27.1]} 27... Nxd4+ {[%clk
0:02:07.8]} 28. Rxd4 {[%clk 0:00:28]} 28... Bc5 {[%clk 0:02:05.7]} 29. Rc4
{[%clk 0:00:23]} 29... Bxb6 {[%clk 0:02:02.3]} 30. exf5 {[%clk 0:00:22.7]} 30...
Rh2 {[%clk 0:01:57.4]} 31. Re4+ {[%clk 0:00:22.9]} 31... Kf8 {[%clk 0:01:56.5]}
32. Re2 {[%clk 0:00:23.8]} 32... Bc7 {[%clk 0:01:55.1]} 33. Kd3 {[%clk
0:00:15.8]} 33... Bxf4 {[%clk 0:01:54.1]} 34. g6 {[%clk 0:00:15]} 34... fxg6
{[%clk 0:01:49.9]} 35. fxg6 {[%clk 0:00:15.9]} 35... Bg5 {[%clk 0:01:41.5]} 36.
Rf2+ {[%clk 0:00:13.8]} 36... Ke7 {[%clk 0:01:37.2]} 37. Rf7+ {[%clk 0:00:14]}
37... Ke6 {[%clk 0:01:36]} 38. Bf3 {[%clk 0:00:12.9]} 38... Bf6 {[%clk
0:01:28.1]} 39. Bg4+ {[%clk 0:00:10.7]} 39... Kd6 {[%clk 0:01:27.4]} 40. Rxb7
{[%clk 0:00:10.7]} 40... Bxb2 {[%clk 0:01:25.3]} 41. Rd7+ {[%clk 0:00:08.3]}
41... Kc5 {[%clk 0:01:24.9]} 42. Rc7 {[%clk 0:00:07.2]} 42... Be5 {[%clk
0:01:23.7]} 43. Bf3 {[%clk 0:00:07.2]} 43... Bxc7 {[%clk 0:01:23.5]} 0-1

[Event "Early-Titled-Tuesday-Blitz-February-20-2024"]
[Site "Chess.com"]
[Date "2024.02.20"]
[Round "1"]
[White "CarlosjPineror"]
[Black "mary-sanna"]
[Result "1-0"]
[WhiteElo "2571"]
[BlackElo "2140"]
[TimeControl "180+1"]
[EndTime "8:06:25 PST"]
[Termination "CarlosjPineror won by checkmate"]

1. e4 {[%clk 0:02:56.8]} 1... c5 {[%clk 0:02:59.5]} 2. Nf3 {[%clk 0:02:56.7]}
2... Nc6 {[%clk 0:02:59.6]} 3. g3 {[%clk 0:02:56.8]} 3... g6 {[%clk 0:02:50.2]}
4. Bg2 {[%clk 0:02:56.5]} 4... Bg7 {[%clk 0:02:49.4]} 5. O-O {[%clk 0:02:56.6]}
5... Nf6 {[%clk 0:02:48.1]} 6. Nc3 {[%clk 0:02:53.2]} 6... O-O {[%clk
0:02:47.1]} 7. d3 {[%clk 0:02:53.3]} 7... d6 {[%clk 0:02:42.5]} 8. h3 {[%clk
0:02:53.5]} 8... a6 {[%clk 0:02:41.7]} 9. Be3 {[%clk 0:02:53.5]} 9... b5 {[%clk
0:02:41.1]} 10. Qd2 {[%clk 0:02:53.3]} 10... Re8 {[%clk 0:02:38.7]} 11. Ne1
{[%clk 0:02:52]} 11... Bd7 {[%clk 0:02:31.4]} 12. f4 {[%clk 0:02:52.1]} 12...
Rb8 {[%clk 0:02:25.2]} 13. Nd1 {[%clk 0:02:51.4]} 13... Nh5 {[%clk 0:02:09.6]}
14. Kh2 {[%clk 0:02:49.5]} 14... f5 {[%clk 0:02:08.6]} 15. c3 {[%clk 0:02:32.8]}
15... Qc8 {[%clk 0:02:04.2]} 16. Nf2 {[%clk 0:02:27.2]} 16... b4 {[%clk
0:02:01.9]} 17. Rc1 {[%clk 0:02:25]} 17... bxc3 {[%clk 0:01:57.6]} 18. bxc3
{[%clk 0:02:25.9]} 18... Nf6 {[%clk 0:01:51.2]} 19. Nf3 {[%clk 0:02:22.1]} 19...
e5 {[%clk 0:01:47.6]} 20. fxe5 {[%clk 0:02:19.8]} 20... Nxe5 {[%clk 0:01:45.9]}
21. Nxe5 {[%clk 0:02:19.7]} 21... dxe5 {[%clk 0:01:44.1]} 22. exf5 {[%clk
0:02:18.1]} 22... Bxf5 {[%clk 0:01:39.7]} 23. g4 {[%clk 0:02:15.7]} 23... Be6
{[%clk 0:01:33.6]} 24. Ne4 {[%clk 0:02:15.7]} 24... Nxe4 {[%clk 0:01:23.8]} 25.
Bxe4 {[%clk 0:02:14.5]} 25... c4 {[%clk 0:01:20.3]} 26. Bh6 {[%clk 0:02:07.5]}
26... cxd3 {[%clk 0:01:17.7]} 27. Qg5 {[%clk 0:01:58.6]} 27... Qd8 {[%clk
0:01:09]} 28. Qxd8 {[%clk 0:01:53]} 28... Rexd8 {[%clk 0:01:03.8]} 29. Bg5
{[%clk 0:01:53.1]} 29... Rb2+ {[%clk 0:01:00.5]} 30. Kh1 {[%clk 0:01:52.7]}
30... Rd7 {[%clk 0:00:52]} 31. c4 {[%clk 0:01:53]} 31... d2 {[%clk 0:00:49.2]}
32. Rcd1 {[%clk 0:01:47.6]} 32... Bxc4 {[%clk 0:00:47.4]} 33. Rf2 {[%clk
0:01:46.4]} 33... Rxa2 {[%clk 0:00:41.2]} 34. Rdxd2 {[%clk 0:01:42.5]} 34...
Raxd2 {[%clk 0:00:38.3]} 35. Bxd2 {[%clk 0:01:42.6]} 35... Bd5 {[%clk
0:00:35.5]} 36. Bxd5+ {[%clk 0:01:42.4]} 36... Rxd5 {[%clk 0:00:35.7]} 37. Kg2
{[%clk 0:01:43.3]} 37... e4 {[%clk 0:00:35]} 38. Re2 {[%clk 0:01:42.3]} 38...
Rd4 {[%clk 0:00:25]} 39. Be3 {[%clk 0:01:42.8]} 39... Rc4 {[%clk 0:00:23.6]} 40.
Bf2 {[%clk 0:01:43.3]} 40... a5 {[%clk 0:00:23.5]} 41. Rd2 {[%clk 0:01:42.9]}
41... h6 {[%clk 0:00:21.9]} 42. Rd7 {[%clk 0:01:43.2]} 42... a4 {[%clk
0:00:21.6]} 43. Rd8+ {[%clk 0:01:43.7]} 43... Kh7 {[%clk 0:00:21.5]} 44. Ra8
{[%clk 0:01:44.5]} 44... Rc2 {[%clk 0:00:20.2]} 45. Kf1 {[%clk 0:01:42.3]} 45...
Ra2 {[%clk 0:00:19]} 46. Ra7 {[%clk 0:01:42]} 46... a3 {[%clk 0:00:18.7]} 47.
Bd4 {[%clk 0:01:41.9]} 47... h5 {[%clk 0:00:14.3]} 48. g5 {[%clk 0:01:39.4]}
48... Rh2 {[%clk 0:00:11.4]} 49. Rxg7+ {[%clk 0:01:38.5]} 49... Kh8 {[%clk
0:00:11.7]} 50. Rxg6+ {[%clk 0:01:38.7]} 50... Kh7 {[%clk 0:00:11.8]} 51. Rh6+
{[%clk 0:01:37.4]} 51... Kg8 {[%clk 0:00:12.1]} 52. g6 {[%clk 0:01:38]} 52... a2
{[%clk 0:00:11.9]} 53. Rh8# {[%clk 0:01:38.2]} 1-0